[Event "ISR-chT 2019"]
[Site "Israel"]
[Date "2019.01.04"]
[Round "1"]
[White "Finkel, Alexander"]
[Black "Flom, Gabriel"]
[Result "0-1"]
[ECO "C01"]
[WhiteElo "2453"]
[BlackElo "2467"]
[Annotator "ChessBase"]
[PlyCount "88"]
[EventDate "2019.01.04"]
[EventType "team-tourn"]
[EventCountry "ISR"]
[SourceTitle "playchess.com"]
[Source "ChessBase"]
[SourceQuality "1"]
[TimeControl "40/5400+30:1800+30"]

1. e4 {[%emt 0:00:00]} e6 {[%emt 0:00:00]} 2. d4 {[%emt 0:00:00]} d5 {[%emt 0:00:00]} 3. exd5 {[%emt 0:00:14]} exd5 {[%emt 0:00:00]} 4. Nf3 {[%emt 0:00:13]} Nc6 {[%emt 0:00:00]} 5. h3 {[%emt 0:01:52]} Bf5 {[%emt 0:08:09]} 6. c3 {[%emt 0:10:22]} Qd7 {[%emt 0:03:57]} 7. Bb5 {[%emt 0:06:02]} Bd6 {[%emt 0:00:29]} 8. Be3 {[%emt 0:22:46]} Nge7 {[%emt 0:01:34]} 9. Nbd2 {[%emt 0:02:46]} a6 {[%emt 0:04:57]} 10. Ba4 {[%emt 0:02:40]} f6 {[%emt 0:01:45]} 11. Qe2 {[%emt 0:04:37]} O-O {[%emt 0:14:21]} 12. Nh4 {[%emt 0:03:19]} Be6 {[%emt 0:03:36]} 13. f4 {[%emt 0:05:34]} b5 {[%emt 0:10:24]} 14. Bc2 {[%emt 0:05:41]} Nf5 {[%emt 0:00:06]} 15. Nxf5 {[%emt 0:00:24]} Bxf5 {[%emt 0:00:01]} 16. Bb3 {[%emt 0:00:12]} Be6 {[%emt 0:05:51]} 17. Qf3 {[%emt 0:03:26]} Rae8 {[%emt 0:06:18]} 18. Kf2 {[%emt 0:04:28]} Ne7 {[%emt 0:00:17]} 19. g4 {[%emt 0:00:37]} Bf7 {[%emt 0:01:46]} 20. Rag1 {[%emt 0:08:41]} Ng6 {[%emt 0:05:34]} 21. h4 {[%emt 0:01:18]} Rxe3 {[%emt 0:01:53]} 22. Qxe3 {[%emt 0:05:26]} Nxf4 {[%emt 0:00:13]} 23. Qf3 {[%emt 0:00:21]} c5 {[%emt 0:02:07]} 24. Bc2 {[%emt 0:00:20]} cxd4 {[%emt 0:01:27]} 25. cxd4 {[%emt 0:00:06]} Qc7 {[%emt 0:01:35]} 26. Bb1 {[%emt 0:00:27]} Qb6 {[%emt 0:03:36]} 27. Nb3 {[%emt 0:00:30]} a5 {[%emt 0:02:31]} 28. Rc1 {[%emt 0:02:05]} h5 {[%emt 0:03:07]} 29. Rhg1 {[%emt 0:01:53]} a4 {[%emt 0:03:12]} 30. Nc5 {[%emt 0:00:26]} Qa5 {[%emt 0:02:58]} 31. Rc3 {[%emt 0:02:12]} Qb4 {[%emt 0:00:47]} 32. Nd3 {[%emt 0:04:25]} Qxd4+ {[%emt 0:00:15]} 33. Kf1 {[%emt 0:00:03]} b4 {[%emt 0:06:32]} 34. Rc6 {[%emt 0:00:18]} Be8 {[%emt 0:04:10]} 35. Rxd6 {[%emt 0:00:23]} Bb5 {[%emt 0:00:00]} 36. Rg3 {[%emt 0:00:24]} Rc8 {[%emt 0:00:18]} 37. Qe3 {[%emt 0:01:27]} Qxb2 {[%emt 0:00:32]} 38. Kg1 {[%emt 0:01:51]} Qxb1+ {[%emt 0:01:03]} 39. Ne1 {[%emt 0:01:02]} Rc3 {[%emt 0:03:31]} 40. Qxf4 {[%emt 0:00:35]} Qxe1+ {[%emt 0:00:05]} 41. Kh2 {[%emt 0:30:13]} Rc2+ {[%emt 0:30:04]} 42. Rg2 {[%emt 0:00:13]} Qxh4+ {[%emt 0:00:18]} 43. Kg1 {[%emt 0:00:02]} Qe1+ {[%emt 0:00:00]} 44. Kh2 {[%emt 0:00:00]} Rc1 {[%emt 0:00:00]} 0-1

[Event "ISR-chT 2019"]
[Site "Israel"]
[Date "2019.01.04"]
[Round "1"]
[White "Gorodetzky, David"]
[Black "Postny, Evgeny"]
[Result "1/2-1/2"]
[ECO "D20"]
[WhiteElo "2447"]
[BlackElo "2623"]
[Annotator "ChessBase"]
[PlyCount "87"]
[EventDate "2019.01.04"]
[EventType "team-tourn"]
[EventCountry "ISR"]
[SourceTitle "playchess.com"]
[Source "ChessBase"]
[SourceQuality "1"]
[TimeControl "40/5400+30:1800+30"]

1. d4 {[%emt 0:00:00]} d5 {[%emt 0:00:00]} 2. c4 {[%emt 0:00:00]} dxc4 {[%emt 0:00:00]} 3. e4 {[%emt 0:07:29]} e5 {[%emt 0:01:23]} 4. Nf3 {[%emt 0:00:38]} Bb4+ {[%emt 0:00:07]} 5. Nc3 {[%emt 0:02:31]} exd4 {[%emt 0:00:27]} 6. Nxd4 {[%emt 0:00:32]} Ne7 {[%emt 0:00:17]} 7. a3 {[%emt 0:01:48]} Nbc6 {[%emt 0:00:42]} 8. axb4 {[%emt 0:02:51]} Qxd4 {[%emt 0:00:19]} 9. Qa4 {[%emt 0:13:06]} O-O {[%emt 0:03:30]} 10. Be3 {[%emt 0:06:32]} Qd6 {[%emt 0:00:48]} 11. Bxc4 {[%emt 0:02:24]} Qxb4 {[%emt 0:05:03]} 12. Qxb4 {[%emt 0:02:51]} Nxb4 {[%emt 0:03:07]} 13. Bc5 {[%emt 0:00:07]} Nbc6 {[%emt 0:00:47]} 14. Nb5 {[%emt 0:00:40]} Bd7 {[%emt 0:18:37]} 15. Rd1 {[%emt 0:26:37]} Rfd8 {[%emt 0:17:14]} 16. Nxc7 {[%emt 0:06:36]} Bg4 {[%emt 0:00:53]} 17. Rxd8+ {[%emt 0:06:50]} Rxd8 {[%emt 0:00:05]} 18. f3 {[%emt 0:00:09]} Bc8 {[%emt 0:09:04]} 19. O-O {[%emt 0:06:16]} b6 {[%emt 0:04:01]} 20. Be3 {[%emt 0:08:06]} Bb7 {[%emt 0:06:33]} 21. Ra1 {[%emt 0:01:09]} Rd7 {[%emt 0:06:21]} 22. Nd5 {[%emt 0:01:16]} Nxd5 {[%emt 0:00:46]} 23. Bxd5 {[%emt 0:00:25]} Kf8 {[%emt 0:01:13]} 24. h4 {[%emt 0:01:43]} Ke7 {[%emt 0:02:27]} 25. h5 {[%emt 0:00:37]} h6 {[%emt 0:02:15]} 26. Bd2 {[%emt 0:00:31]} f6 {[%emt 0:03:57]} 27. Kh2 {[%emt 0:01:07]} Ke8 {[%emt 0:01:41]} 28. Bc3 {[%emt 0:00:27]} a5 {[%emt 0:01:15]} 29. Re1 {[%emt 0:00:32]} Ne5 {[%emt 0:01:33]} 30. Be6 {[%emt 0:00:36]} Rd6 {[%emt 0:01:30]} 31. Bb3 {[%emt 0:00:25]} Nd3 {[%emt 0:00:52]} 32. Rd1 {[%emt 0:00:30]} Ke7 {[%emt 0:00:17]} 33. Bc2 {[%emt 0:00:36]} Nb4 {[%emt 0:04:47]} 34. Bxb4 {[%emt 0:00:23]} axb4 {[%emt 0:00:05]} 35. Kg3 {[%emt 0:00:10]} Rxd1 {[%emt 0:02:22]} 36. Bxd1 {[%emt 0:00:02]} Kd6 {[%emt 0:00:20]} 37. Kf4 {[%emt 0:00:38]} Bc8 {[%emt 0:00:05]} 38. Ke3 {[%emt 0:00:28]} Be6 {[%emt 0:01:43]} 39. Kd4 {[%emt 0:00:30]} Bf7 {[%emt 0:00:16]} 40. f4 {[%emt 0:00:13]} Be6 {[%emt 0:00:16]} 41. Bf3 {[%emt 0:09:08]} Bf7 {[%emt 0:01:24]} 42. Bd1 {[%emt 0:09:12]} Be6 {[%emt 0:01:01]} 43. Be2 {[%emt 0:06:36]} Bf7 {[%emt 0:00:28]} 44. Bf3 {[%emt 0:03:13] Kd5+ [%clk 0:00:00]} 1/2-1/2

[Event "ISR-chT 2019"]
[Site "Israel"]
[Date "2019.01.04"]
[Round "1"]
[White "Mikhalevski, Alexander"]
[Black "Greenfeld, Alon"]
[Result "1/2-1/2"]
[ECO "D05"]
[WhiteElo "2430"]
[BlackElo "2525"]
[Annotator "ChessBase"]
[PlyCount "54"]
[EventDate "2019.01.04"]
[EventType "team-tourn"]
[EventCountry "ISR"]
[SourceTitle "playchess.com"]
[Source "ChessBase"]
[SourceQuality "1"]
[TimeControl "40/5400+30:1800+30"]

1. d4 {[%emt 0:00:00]} e6 {[%emt 0:00:20]} 2. Nf3 {[%emt 0:00:02]} c5 {[%emt 0:04:42]} 3. e3 {[%emt 0:00:09]} Nf6 {[%emt 0:02:17]} 4. Bd3 {[%emt 0:00:12]} d5 {[%emt 0:04:02]} 5. O-O {[%emt 0:01:20]} Nbd7 {[%emt 0:08:12]} 6. b3 {[%emt 0:01:33]} g6 {[%emt 0:00:23]} 7. Bb2 {[%emt 0:01:51]} Bg7 {[%emt 0:01:46]} 8. Nbd2 {[%emt 0:02:38]} O-O {[%emt 0:00:50]} 9. c4 {[%emt 0:22:14]} b6 {[%emt 0:04:08]} 10. Rc1 {[%emt 0:09:50]} Bb7 {[%emt 0:00:41]} 11. dxc5 {[%emt 0:05:52]} Nxc5 {[%emt 0:08:48]} 12. Be2 {[%emt 0:07:05]} Qe7 {[%emt 0:14:25]} 13. b4 {[%emt 0:08:55]} Nce4 {[%emt 0:02:33]} 14. Qa4 {[%emt 0:00:41]} Nxd2 {[%emt 0:14:54]} 15. Nxd2 {[%emt 0:00:04]} Rfc8 {[%emt 0:00:09]} 16. a3 {[%emt 0:06:23]} Ne4 {[%emt 0:09:32]} 17. Qc2 {[%emt 0:03:59]} Nxd2 {[%emt 0:01:00]} 18. Qxd2 {[%emt 0:00:21]} Bxb2 {[%emt 0:00:20]} 19. Qxb2 {[%emt 0:00:19]} dxc4 {[%emt 0:00:19]} 20. Bxc4 {[%emt 0:26:32]} a5 {[%emt 0:08:19]} 21. Be2 {[%emt 0:00:00]} Qg5 {[%emt 0:03:49]} 22. g3 {[%emt 0:00:00]} axb4 {[%emt 0:04:00]} 23. Qxb4 {[%emt 0:00:00]} Qd5 {[%emt 0:00:31]} 24. f3 {[%emt 0:00:00]} Qa2 {[%emt 0:01:05]} 25. Rxc8+ {[%emt 0:00:00]} Rxc8 {[%emt 0:00:03]} 26. Bd3 {[%emt 0:00:00]} Rd8 {[%emt 0:03:00]} 27. Rf2 {[%emt 0:00:00]} Qa1+ {[%emt 0:03:22]} 1/2-1/2

[Event "ISR-chT 2019"]
[Site "Israel"]
[Date "2019.01.04"]
[Round "1"]
[White "Bykhovsky, Avigdor"]
[Black "Shachar, Ehud"]
[Result "1/2-1/2"]
[ECO "A96"]
[WhiteElo "2419"]
[BlackElo "2391"]
[Annotator "NA"]
[PlyCount "33"]
[EventDate "2019.01.04"]
[EventType "team-tourn"]
[EventCountry "ISR"]
[SourceTitle "playchess.com"]
[Source "ChessBase"]
[SourceQuality "1"]
[TimeControl "40/5400+30:1800+30"]

1. d4 {[%emt 0:00:00]} e6 {[%emt 0:00:00]} 2. c4 {[%emt 0:00:30]} f5 {[%emt 0:00:00]} 3. g3 {[%emt 0:00:23]} Nf6 {[%emt 0:00:00]} 4. Bg2 {[%emt 0:00:08]} Be7 {[%emt 0:00:01]} 5. Nc3 {[%emt 0:09:37]} O-O {[%emt 0:00:20]} 6. Nf3 {[%emt 0:02:43]} d6 {[%emt 0:01:22]} 7. O-O {[%emt 0:01:31]} Ne4 {[%emt 0:00:07]} 8. Bd2 {[%emt 0:28:19]} Bf6 {[%emt 0:04:35]} 9. Qc2 {[%emt 0:01:18]} Nxd2 10. Qxd2 {[%emt 0:00:01]} c6 $14 {[%emt 0:21:00]} 11. e4 {[%emt 0:06:55]} e5 {[%emt 0:06:23]} 12. dxe5 {[%emt 0:01:59]} dxe5 {[%emt 0:00:09]} 13. Qxd8 {[%emt 0:00:15]} Rxd8 {[%emt 0:00:08]} 14. Rad1 {[%emt 0:00:01]} Rxd1 {[%emt 0:03:08]} 15. Rxd1 {[%emt 0:00:02]} Na6 {[%emt 0:00:32]} 16. exf5 {[%emt 0:08:43]} Bxf5 {[%emt 0:00:14]} 17. Nd2 {[%emt 0:00:01]} 1/2-1/2

[Event "ISR-chT 2019"]
[Site "Israel"]
[Date "2019.01.04"]
[Round "1"]
[White "Shvayger, Yuliya"]
[Black "Kreizberg, Michael"]
[Result "1/2-1/2"]
[ECO "B12"]
[WhiteElo "2387"]
[BlackElo "2297"]
[Annotator "NA"]
[PlyCount "153"]
[EventDate "2019.01.04"]
[EventType "team-tourn"]
[EventCountry "ISR"]
[SourceTitle "playchess.com"]
[Source "ChessBase"]
[SourceQuality "1"]
[TimeControl "40/5400+30:1800+30"]

1. e4 {[%emt 0:00:00]} c6 {[%emt 0:00:00]} 2. d4 {[%emt 0:00:00]} d5 {[%emt 0:00:00]} 3. e5 {[%emt 0:01:40]} Bf5 {[%emt 0:00:00]} 4. Nf3 {[%emt 0:00:02]} e6 {[%emt 0:00:11]} 5. Be2 {[%emt 0:00:02]} Ne7 {[%emt 0:00:12]} 6. O-O {[%emt 0:00:18]} Bg6 {[%emt 0:00:15]} 7. c3 {[%emt 0:05:59]} Nd7 {[%emt 0:13:10]} 8. b4 {[%emt 0:05:38]} Nf5 {[%emt 0:18:13]} 9. a4 {[%emt 0:02:32]} Be7 {[%emt 0:00:26]} 10. Nbd2 {[%emt 0:00:41]} f6 {[%emt 0:09:56]} 11. exf6 {[%emt 0:03:15]} Bxf6 {[%emt 0:12:53]} 12. Nb3 {[%emt 0:00:08]} e5 $11 {[%emt 0:00:30]} 13. g4 {[%emt 1:16:15]} Nd6 {[%emt 0:12:55]} 14. g5 {[%emt 0:00:00]} Be7 {[%emt 0:01:03]} 15. Nxe5 {[%emt 0:00:00]} Nxe5 {[%emt 0:17:14]} 16. dxe5 {[%emt 0:00:00]} Ne4 {[%emt 0:00:02]} 17. Qd4 {[%emt 0:00:00]} Bxg5 {[%emt 0:05:59]} 18. f4 {[%emt 0:00:00]} Bh6 {[%emt 0:00:02]} 19. Nc5 {[%emt 0:00:00]} Nxc5 20. Qxc5 {[%emt 0:00:00]} Be4 {[%emt 0:06:28]} 21. Bf3 {[%emt 0:00:00]} Bxf3 {[%emt 0:05:59]} 22. Rxf3 {[%emt 0:00:00]} Qe7 {[%emt 0:00:49]} 23. Be3 {[%emt 0:00:00]} Qxc5 {[%emt 0:05:10]} 24. Bxc5 {[%emt 0:00:00]} b6 {[%emt 0:00:37]} 25. Bd4 {[%emt 0:00:00]} g6 {[%emt 0:00:17]} 26. f5 {[%emt 0:00:00]} gxf5 {[%emt 0:00:05]} 27. Rxf5 {[%emt 0:00:00]} Rg8+ {[%emt 0:00:23]} 28. Kh1 {[%emt 0:00:00]} Ke7 {[%emt 0:00:16]} 29. a5 {[%emt 0:00:00]} Raf8 {[%emt 0:01:47]} 30. Rh5 {[%emt 0:00:00]} Bf4 {[%emt 0:00:02]} 31. axb6 {[%emt 0:00:00]} axb6 {[%emt 0:00:03]} 32. Bxb6 {[%emt 0:00:00]} Ke6 {[%emt 0:00:14]} 33. Bd4 {[%emt 0:00:00]} Ra8 {[%emt 0:01:36]} 34. Rf1 {[%emt 0:01:06]} h6 {[%emt 0:00:43]} 35. Rh4 {[%emt 0:00:07]} Bg5 {[%emt 0:00:28]} 36. Rh3 {[%emt 0:01:12]} Rgf8 {[%emt 0:01:45]} 37. Rg1 {[%emt 0:00:01]} Ra2 {[%emt 0:00:17]} 38. Rhg3 {[%emt 0:02:27]} Rf4 {[%emt 0:00:21]} 39. Rb1 {[%emt 0:02:56]} Re4 {[%emt 0:00:16]} 40. Rg2 {[%emt 0:02:09]} Ree2 {[%emt 0:00:03]} 41. Rxe2 {[%emt 0:30:50]} Rxe2 {[%emt 0:30:02]} 42. Ra1 {[%emt 0:02:51]} Bf4 {[%emt 0:00:00]} 43. Ra6 {[%emt 0:00:00]} Kd7 {[%emt 0:00:00]} 44. Ra7+ {[%emt 0:00:00]} Kd8 {[%emt 0:00:00]} 45. Ra6 {[%emt 0:00:00]} Kd7 {[%emt 0:00:00]} 46. Ra7+ {[%emt 0:00:00]} Kd8 {[%emt 0:00:00]} 47. Bb6+ {[%emt 0:00:00]} Ke8 {[%emt 0:00:00]} 48. Rc7 {[%emt 0:00:00]} Bxe5 {[%emt 0:00:00]} 49. Rxc6 {[%emt 0:00:00]} Rxh2+ {[%emt 0:00:00]} 50. Kg1 {[%emt 0:00:00]} Kd7 {[%emt 0:00:00]} 51. Rg6 {[%emt 0:00:00]} Rc2 {[%emt 0:00:00]} 52. Bd4 {[%emt 0:00:00]} Bxd4+ {[%emt 0:00:00]} 53. cxd4 {[%emt 0:00:00]} Rc4 {[%emt 0:00:18]} 54. Rxh6 {[%emt 0:00:00]} Rxb4 {[%emt 0:00:28]} 55. Rh4 {[%emt 0:00:00]} Kc6 {[%emt 0:00:42]} 56. Kf2 {[%emt 0:00:00]} Kb5 {[%emt 0:00:09]} 57. Ke2 {[%emt 0:00:00]} Kc4 {[%emt 0:00:09]} 58. Kd2 {[%emt 0:00:00]} Rb3 {[%emt 0:00:35]} 59. Kc2 {[%emt 0:00:00]} Rd3 {[%emt 0:00:30]} 60. Rg4 {[%emt 0:00:00]} Rh3 {[%emt 0:00:33]} 61. Kd2 {[%emt 0:00:00]} Rh2+ {[%emt 0:00:17]} 62. Kd1 {[%emt 0:00:00]} Kd3 {[%emt 0:00:28]} 63. Rg3+ {[%emt 0:00:00]} Kxd4 {[%emt 0:00:29]} 64. Rg4+ {[%emt 0:00:00]} Ke3 {[%emt 0:00:26]} 65. Rg3+ {[%emt 0:00:00]} Kf4 {[%emt 0:00:08]} 66. Ra3 {[%emt 0:00:00]} d4 {[%emt 0:00:09]} 67. Rb3 {[%emt 0:00:00]} Ke4 {[%emt 0:00:57]} 68. Ra3 {[%emt 0:00:00]} Ke5 {[%emt 0:01:32]} 69. Rb3 {[%emt 0:00:00]} Kd5 {[%emt 0:00:16]} 70. Ra3 {[%emt 0:00:00]} Kc4 {[%emt 0:00:38]} 71. Rg3 {[%emt 0:00:00]} Ra2 {[%emt 0:00:46]} 72. Rh3 {[%emt 0:00:00]} Rb2 {[%emt 0:01:27]} 73. Rg3 {[%emt 0:00:00]} Rb7 {[%emt 0:00:20]} 74. Kd2 {[%emt 0:00:00]} Ra7 {[%emt 0:00:15]} 75. Rh3 {[%emt 0:00:00]} Ra2+ {[%emt 0:01:05]} 76. Kd1 {[%emt 0:00:00]} Kb4 {[%emt 0:00:17]} 77. Rg3 {[%emt 0:00:00]} 1/2-1/2

[Event "ISR-chT 2019"]
[Site "Israel"]
[Date "2019.01.04"]
[Round "1"]
[White "Bitensky, Igor"]
[Black "Liss, Eran"]
[Result "1/2-1/2"]
[ECO "C84"]
[WhiteElo "2373"]
[BlackElo "2431"]
[Annotator "NA"]
[PlyCount "66"]
[EventDate "2019.01.04"]
[EventType "team-tourn"]
[EventCountry "ISR"]
[SourceTitle "playchess.com"]
[Source "ChessBase"]
[SourceQuality "1"]
[TimeControl "40/5400+30:1800+30"]

1. e4 {[%emt 0:00:00]} e5 {[%emt 0:00:00]} 2. Nf3 {[%emt 0:00:00]} Nc6 {[%emt 0:00:00]} 3. Bb5 {[%emt 0:00:04]} a6 {[%emt 0:00:00]} 4. Ba4 {[%emt 0:00:02]} Nf6 {[%emt 0:00:00]} 5. O-O {[%emt 0:01:47]} Be7 {[%emt 0:00:40]} 6. d3 {[%emt 0:00:14]} d6 {[%emt 0:02:32]} 7. c3 {[%emt 0:06:55]} O-O {[%emt 0:01:24]} 8. Re1 {[%emt 0:01:12]} b5 {[%emt 1:29:24]} 9. Bc2 {[%emt 0:00:45]} d5 {[%emt 0:00:00]} 10. Bg5 {[%emt 1:24:01]} h6 {[%emt 0:00:00]} 11. Bh4 $11 {[%emt 0:00:00]} dxe4 {[%emt 0:00:00]} 12. dxe4 {[%emt 0:00:00]} Be6 {[%emt 0:00:00]} 13. Nbd2 {[%emt 0:00:00]} Qd6 {[%emt 0:00:00]} 14. Nf1 {[%emt 0:00:00]} Rad8 {[%emt 0:00:00]} 15. b4 {[%emt 0:00:00]} Nh5 {[%emt 0:03:30]} 16. Ne3 Nf4 {[%emt 0:00:30]} 17. Qxd6 {[%emt 0:00:00]} cxd6 {[%emt 0:00:00]} 18. Bxe7 {[%emt 0:00:00]} Nxe7 {[%emt 0:00:00]} 19. g3 {[%emt 0:00:00]} Nh3+ {[%emt 0:00:00]} 20. Kg2 {[%emt 0:00:00]} Ng5 {[%emt 0:00:07]} 21. Nxg5 {[%emt 0:00:00]} hxg5 {[%emt 0:00:01]} 22. a4 {[%emt 0:00:00]} d5 {[%emt 0:02:00]} 23. axb5 {[%emt 0:00:00]} axb5 {[%emt 0:00:02]} 24. exd5 {[%emt 0:00:00]} Nxd5 {[%emt 0:00:01]} 25. Nxd5 {[%emt 0:00:00]} Bxd5+ {[%emt 0:00:01]} 26. Be4 {[%emt 0:00:00]} Bc4 {[%emt 0:02:09]} 27. Red1 {[%emt 0:03:05]} g6 {[%emt 0:00:35]} 28. Rxd8 {[%emt 0:02:30]} Rxd8 {[%emt 0:00:01]} 29. Ra8 {[%emt 0:00:16]} Rxa8 {[%emt 0:00:04]} 30. Bxa8 {[%emt 0:00:02]} f5 {[%emt 0:00:43]} 31. Kf3 {[%emt 0:00:17]} g4+ {[%emt 0:00:19]} 32. Ke3 {[%emt 0:00:06]} Kf7 {[%emt 0:00:16]} 33. Bg2 {[%emt 0:02:47]} Ke8 {[%emt 0:02:11]} 1/2-1/2

[Event "ISR-chT 2019"]
[Site "Israel"]
[Date "2019.01.04"]
[Round "1"]
[White "Bronstein, Or"]
[Black "Botvinnik, Mikhail"]
[Result "1-0"]
[ECO "E11"]
[WhiteElo "2370"]
[BlackElo "2379"]
[Annotator "NA"]
[PlyCount "83"]
[EventDate "2019.01.04"]
[EventType "team-tourn"]
[EventCountry "ISR"]
[SourceTitle "playchess.com"]
[Source "ChessBase"]
[SourceQuality "1"]
[TimeControl "40/5400+30:1800+30"]

1. c4 {[%emt 0:00:00]} Nf6 {[%emt 0:00:00]} 2. d4 {[%emt 0:01:09]} e6 {[%emt 0:01:51]} 3. g3 {[%emt 0:02:00]} Bb4+ {[%emt 0:01:32]} 4. Bd2 {[%emt 0:00:11]} a5 {[%emt 0:04:58]} 5. Bg2 {[%emt 0:00:15]} O-O {[%emt 0:00:06]} 6. Nf3 {[%emt 0:01:41]} b6 {[%emt 0:00:21]} 7. O-O {[%emt 0:00:43]} Ba6 {[%emt 0:04:32]} 8. Qc2 {[%emt 0:07:00]} d5 {[%emt 0:03:05]} 9. Ne5 {[%emt 0:01:14]} c6 {[%emt 0:02:25]} 10. Rd1 {[%emt 0:07:11]} Qe7 {[%emt 0:11:15]} 11. Nc3 {[%emt 1:14:06]} Nfd7 $11 {[%emt 0:14:45]} 12. Nxd7 {[%emt 0:00:00]} Nxd7 {[%emt 0:00:13]} 13. cxd5 {[%emt 0:00:00]} cxd5 {[%emt 0:01:04]} 14. e4 {[%emt 0:00:00]} Bxc3 {[%emt 0:04:33]} 15. Bxc3 {[%emt 0:00:00]} Nf6 {[%emt 0:05:17]} 16. e5 {[%emt 0:00:00]} Ne4 {[%emt 0:09:26]} 17. Be1 {[%emt 0:00:00]} f6 {[%emt 0:02:56]} 18. exf6 {[%emt 0:00:00]} Qxf6 {[%emt 0:02:11]} 19. b3 {[%emt 0:04:00]} Rf7 {[%emt 0:04:53]} 20. Rac1 {[%emt 0:00:00]} Raf8 {[%emt 0:00:51]} 21. f3 {[%emt 0:00:00]} Ng5 {[%emt 0:01:10]} 22. f4 {[%emt 0:00:00]} Ne4 {[%emt 0:00:12]} 23. Bf2 {[%emt 0:00:00]} b5 {[%emt 0:13:05]} 24. Be3 {[%emt 0:00:00]} b4 {[%emt 0:03:08]} 25. Qc6 {[%emt 0:00:00]} Be2 {[%emt 0:02:05]} 26. Re1 {[%emt 0:00:00]} Bh5 {[%emt 0:00:44]} 27. Bxe4 {[%emt 0:01:26]} dxe4 {[%emt 0:00:01]} 28. Qxe4 {[%emt 0:00:10]} Bg4 {[%emt 0:00:39]} 29. Rc5 {[%emt 0:00:23]} Bf5 {[%emt 0:01:00]} 30. Qc6 {[%emt 0:00:58]} Qg6 {[%emt 0:00:16]} 31. Bf2 {[%emt 0:00:24]} h5 {[%emt 0:00:40]} 32. Rxa5 {[%emt 0:00:37]} Qg4 {[%emt 0:00:22]} 33. d5 {[%emt 0:00:44]} Qf3 {[%emt 0:00:19]} 34. Re3 {[%emt 0:00:11]} Qd1+ {[%emt 0:00:32]} 35. Re1 {[%emt 0:03:07]} Qf3 {[%emt 0:00:10]} 36. Qc4 {[%emt 0:00:00]} Bd3 {[%emt 0:02:11]} 37. Qd4 {[%emt 0:00:00]} Rxf4 {[%emt 0:00:27]} 38. gxf4 {[%emt 0:00:00]} Rxf4 {[%emt 0:00:20]} 39. Qe3 {[%emt 0:00:01]} Qg4+ {[%emt 0:01:55]} 40. Bg3 {[%emt 0:00:27]} Re4 {[%emt 0:01:50]} 41. Ra8+ {[%emt 0:30:08]} Kh7 {[%emt 0:30:07]} 42. Qxd3 {[%emt 0:00:09]} 1-0

[Event "ISR-chT 2019"]
[Site "Israel"]
[Date "2019.01.04"]
[Round "1"]
[White "Klenburg, Michael"]
[Black "Gershkowich, David"]
[Result "1/2-1/2"]
[ECO "A07"]
[WhiteElo "2361"]
[BlackElo "2200"]
[Annotator "NA"]
[PlyCount "114"]
[EventDate "2019.01.04"]
[EventType "team-tourn"]
[EventCountry "ISR"]
[SourceTitle "playchess.com"]
[Source "ChessBase"]
[SourceQuality "1"]
[TimeControl "40/5400+30:1800+30"]

1. g3 {[%emt 0:00:00]} d5 {[%emt 0:00:46]} 2. Bg2 {[%emt 0:00:00]} Nc6 {[%emt 0:01:02]} 3. d3 {[%emt 0:00:31]} Nf6 {[%emt 0:01:01]} 4. Nf3 {[%emt 0:00:06]} e5 {[%emt 0:01:26]} 5. c3 {[%emt 0:00:00] A07: Réti Opening: New York and Capablanca Systems} (5. O-O Be7 6. c4 O-O 7. cxd5 Nxd5 8. Nc3 Nb6 9. Be3 Re8 10. Rc1 Bf8 11. Na4 Nd4 12. Nc5 c6 13. Nb3 Nxb3 14. Qxb3 Be6 15. Qc2 Nd5 16. Bd2 f6 17. a3 a5 18. e4 Nc7 19. Be3 Nb5 20. Rfd1 {1-0 (36) Nakamura,H (2786)-Grigoriants,S (2576) chess.com INT 2017}) 5... Bd6 {[%emt 0:01:36]} 6. O-O {[%emt 0:00:00]} O-O {[%emt 0:00:42]} 7. Qc2 {[%emt 0:00:04]} h6 {[%emt 0:04:37]} 8. Nbd2 {[%emt 0:00:24]} Bf5 $146 {[%emt 0:02:07]} ({Predecessor:} 8... Be6 9. e4 Qd7 10. Re1 Rad8 11. exd5 Bxd5 12. b4 {½-½ (28) Nagel,H (2211)-Somogyi,J (2114) ICCF email 2011}) 9. e4 {[%emt 0:00:32]} Bh7 {[%emt 0:01:30]} 10. b4 {[%emt 0:01:06]} a5 {[%emt 0:07:58]} 11. b5 {[%emt 0:02:00]} Ne7 {[%emt 0:00:46]} 12. c4 {[%emt 0:05:19]} dxe4 {[%emt 0:04:20]} 13. Nxe4 {[%emt 0:01:07]} Nxe4 {[%emt 0:02:03]} 14. dxe4 {[%emt 0:00:13]} b6 {[%emt 0:01:19]} 15. Bb2 {[%emt 0:02:34]} Ng6 {[%emt 0:00:43]} 16. Ne1 {[%emt 0:03:28]} Qe7 {[%emt 0:04:42]} 17. a4 {[%emt 0:02:43]} Rfe8 {[%emt 0:02:07]} 18. Nd3 {[%emt 0:00:33]} Nf8 {[%emt 0:01:41]} 19. c5 $11 {[%emt 0:01:12]} bxc5 {[%emt 0:02:22]} 20. Rfc1 Nd7 {[%emt 0:07:08]} 21. Ba3 {[%emt 0:06:59]} Rad8 {[%emt 0:01:23]} 22. Nb2 {[%emt 0:05:15]} Qf6 {[%emt 0:12:40]} 23. Nc4 {[%emt 0:08:13]} Nb6 {[%emt 0:05:07]} 24. Bb2 {[%emt 0:03:49]} Ra8 {[%emt 0:05:59]} 25. Qc3 {[%emt 0:06:37]} Qe6 {[%emt 0:03:29]} 26. Ne3 {[%emt 0:09:31]} c6 {[%emt 0:05:03]} 27. bxc6 {[%emt 0:03:22]} Qc8 {[%emt 0:05:20]} 28. Nf5 {[%emt 0:05:17]} Bf8 {[%emt 0:00:49]} 29. f4 {[%emt 0:14:13]} Qxc6 {[%emt 0:02:01]} 30. Qc2 {[%emt 0:00:14]} f6 {[%emt 0:03:10]} 31. fxe5 {[%emt 0:00:17]} fxe5 {[%emt 0:00:09]} 32. Bf1 {[%emt 0:00:30]} Qc7 {[%emt 0:03:46]} 33. Bb5 {[%emt 0:04:12]} Red8 {[%emt 0:00:44]} 34. Qc3 {[%emt 0:00:42]} Bxf5 {[%emt 0:01:34]} 35. exf5 {[%emt 0:00:11]} Bd6 {[%emt 0:02:55]} 36. Qf3 {[%emt 0:02:45]} Rac8 {[%emt 0:01:30]} 37. Bc3 {[%emt 0:01:25]} Nd7 {[%emt 0:01:54]} 38. Ra2 {[%emt 0:05:12]} Nf6 {[%emt 0:00:28]} 39. Rac2 {[%emt 0:00:18]} Qa7 {[%emt 0:00:25]} 40. Bc4+ {[%emt 0:00:57]} Kh8 {[%emt 0:00:02]} 41. g4 {[%emt 0:31:08]} Qc7 {[%emt 0:31:32]} 42. Qh3 {[%emt 0:03:10]} Nh7 {[%emt 0:00:00]} 43. Qe3 {[%emt 0:00:00]} Re8 {[%emt 0:00:00]} 44. Rd1 {[%emt 0:00:00]} Bf8 {[%emt 0:00:00]} 45. Rcd2 {[%emt 0:00:00]} Rcd8 {[%emt 0:00:00]} 46. Bb5 {[%emt 0:00:00]} c4 {[%emt 0:00:00]} 47. Kg2 {[%emt 0:00:00]} Rxd2+ {[%emt 0:00:00]} 48. Rxd2 {[%emt 0:00:00]} Bc5 {[%emt 0:00:00]} 49. Qe4 {[%emt 0:00:00]} Nf6 {[%emt 0:04:34]} 50. Qf3 {[%emt 0:00:00]} e4 {[%emt 0:00:00]} 51. Qe2 {[%emt 0:00:00]} Re7 {[%emt 0:00:00]} 52. Bxf6 {[%emt 0:01:22]} gxf6 {[%emt 0:00:00]} 53. Bxc4 {[%emt 0:00:10]} e3 {[%emt 0:00:00]} 54. Rd1 {[%emt 0:03:57]} Re4 {[%emt 0:00:00]} 55. Bb5 {[%emt 0:02:44]} Rf4 {[%emt 0:00:00]} 56. Rf1 {[%emt 0:01:07]} Qb7+ {[%emt 0:00:00]} 57. Kh3 {[%emt 0:00:23]} Rxf1 {[%emt 0:00:30]} 1/2-1/2